bitfinex/quotes_SOLUSD_20251207
["timestamp","ask_amount","ask_price","bid_price","bid_amount"]
[1765132132645,9.47942994,136.14,136.09,62.2]
[1765132132847,0.68,136.15,136.1,8.16]
[1765132132848,9.47942994,136.13,136.1,8.16]
[1765132133526,10.15942994,136.13,136.1,8.16]
[1765132133922,0.68,136.12,136.1,8.16]
[1765132134124,9.47942994,136.11,136.05,0.69]
[1765132134337,9.47942994,136.09,136.05,0.69]
[1765132134527,9.47942994,136.08,136.06,8.16]
[1765132134734,9.47942994,136.07,136.06,8.16]
[1765132135127,10.15942994,136.07,136.03,0.2]
[1765132135345,10.15942994,136.06,136.03,0.2]
[1765132136133,10.15942994,136.06,136.03,8.24124656]
[1765132136332,9.47942994,136.06,136.03,8.24124656]
[1765132137231,9.47942994,136.08,136.04,0.69]
[1765132137529,9.47942994,136.07,136.05,8.18]
[1765132137948,10.15942994,136.11,136.06,0.69]
[1765132138161,17.50655991,136.11,136.06,8.03930562]
[1765132138351,9.47942994,136.1,136.06,8.03930562]
[1765132138554,9.47942994,136.1,136.07,0.69]
[1765132138865,17.50655991,136.11,136.07,0.69]
[1765132139178,17.50655991,136.11,136.08,8.18]
[1765132139935,10.15942994,136.1,136.08,8.18]
[1765132140159,9.47942994,136.09,136.06,8.18]
[1765132140461,16.82655991,136.11,136.06,8.18]
[1765132140627,9.47942994,136.09,136.06,8.18]
[1765132141053,10.15942994,136.09,136.06,8.18]
[1765132141360,25.71462684,136.11,136.07,0.69]
[1765132141361,9.47942994,136.11,136.07,0.69]
[1765132141538,17.50639953,136.12,136.07,0.69]
[1765132142330,0.69,136.11,136.07,0.69]
[1765132142731,0.69,136.11,136.07,8.0388248]
[1765132142954,10.16942994,136.11,136.07,8.0388248]
[1765132143155,16.82639953,136.12,136.08,0.69]
[1765132143356,0.69,136.11,136.07,8.0388248]
[1765132143660,17.51639953,136.12,136.08,0.69]
[1765132144240,16.82639953,136.12,136.08,0.69]
[1765132144650,10.16942994,136.11,136.08,0.69]
[1765132145268,10.16942994,136.14,136.09,8.18]
[1765132145542,10.16942994,136.14,136.1,0.69]
[1765132146162,0.69,136.13,136.1,0.69]
[1765132146685,8.03596133,136.13,136.09,77.72801843]
[1765132146870,17.51539127,136.13,136.09,70.38]
[1765132147036,10.16942994,136.12,136.09,70.38]
[1765132147436,10.16942994,136.12,136.09,71.07]
[1765132147938,17.51600881,136.12,136.09,71.07]
[1765132148139,9.47942994,136.1,136.05,78.508864]
[1765132148350,0.69,136.11,136.05,15.52980303]
[1765132148351,9.47942994,136.09,136.05,15.52980303]
[1765132148638,9.47942994,136.09,136.05,8.18]
[1765132148840,10.16942994,136.08,136.05,8.18]
[1765132150264,17.51834559,136.08,136.03,8.24112228]
[1765132150472,17.51834559,136.08,136.05,8.18]
[1765132150640,17.51834559,136.08,136.04,0.69]
[1765132150835,16.82834559,136.08,136.05,8.18]
[1765132151034,10.16942994,136.07,136.05,8.18]
[1765132151236,16.82765313,136.09,136.05,8.87]
[1765132151455,10.16942994,136.1,136.06,0.69]
[1765132151956,10.16942994,136.09,136.05,8.18]
[1765132152168,10.16942994,136.09,136.05,8.87]
[1765132152862,16.82715812,136.1,136.06,0.69]
[1765132153047,7.34772818,136.1,136.06,0.69]
[1765132155479,35.88600455,136.1,136.07,8.18]
[1765132155772,26.40657461,136.1,136.07,8.18]
[1765132156568,35.88600455,136.1,136.07,8.18]
[1765132157175,7.34861845,136.08,136.07,8.18]
[1765132158077,8.03861845,136.08,136.05,70.38]
[1765132158257,26.41016459,136.08,136.05,8.18]
[1765132158569,0.69,136.07,136.06,8.18]
[1765132158757,35.19959453,136.08,136.03,63.09]
[1765132158940,26.41016459,136.08,136.04,8.18]
[1765132159143,26.41016459,136.08,136.04,8.87]
[1765132159567,35.19959453,136.08,136.04,8.87]
[1765132159781,0.69,136.07,136.04,8.18]
[1765132159957,0.69,136.07,136.03,63.09]
[1765132160152,35.19959453,136.08,136.04,8.87]
[1765132160353,35.88959453,136.08,136.05,8.18]
[1765132160660,26.41016459,136.08,136.05,8.87]
[1765132160858,25.72016459,136.08,136.05,8.87]
[1765132161844,26.41016459,136.08,136.05,8.87]
[1765132162563,26.41016459,136.08,136.05,8.18]
[1765132162771,26.41016459,136.08,136.05,8.89]
[1765132164276,26.41016459,136.08,136.05,8.18]
[1765132164650,26.41016459,136.08,136.05,70.38]
[1765132165050,19.06154614,136.08,136.05,70.38]
[1765132166271,22.43907953,136.06,136.03,62.4]
[1765132166445,22.43907953,136.06,136.04,8.18]
[1765132166648,23.12907953,136.06,136.04,8.18]
[1765132167671,7.35023888,136.05,136.04,8.18]
[1765132169354,8.04023888,136.05,136.04,8.18]
[1765132169564,22.98039933,136.05,136.03,0.2]
[1765132169763,15.63016045,136.04,136.03,0.2]
[1765132170679,23.81016045,136.04,136.03,1e-08]
[1765132171682,31.16093963,136.04,136.03,1e-08]
[1765132172860,0.69,136.03,136.02,1e-08]
[1765132173070,23.12907953,136.03,136.02,1e-08]
[1765132173279,31.93902445,136.03,136.02,1e-08]
[1765132173790,39.29034401,136.03,136.02,1e-08]
[1765132178674,35.45185263,136.03,136.02,1e-08]
[1765132179984,19.14298863,136.03,136.02,1e-08]
[1765132180278,27.32298863,136.03,136.02,1e-08]
[1765132181600,19.14298863,136.03,136.02,1e-08]
[1765132189600,16.85126448,136.03,136.02,1e-08]
[1765132189786,19.14298863,136.03,136.02,1e-08]
[1765132190603,18.45298863,136.03,136.02,1e-08]
[1765132191493,19.11298863,136.03,136.02,1e-08]
[1765132192005,18.45298863,136.03,136.02,1e-08]
[1765132192172,23.66018356,136.03,136.02,0.72000001]
[1765132192586,23.66018356,136.03,136.02,1e-08]
[1765132193706,23.66018356,136.03,136.02,0.72000001]
[1765132194881,7.34969866,136.06,136.02,0.72000001]
[1765132195082,7.34861845,136.08,136.02,10.36349762]
[1765132195505,16.308864,136.07,136.03,0.72]
[1765132196621,7.34861845,136.08,136.04,8.18]
[1765132196981,7.34861845,136.08,136.05,0.67]
[1765132197680,7.34861845,136.08,136.03,8.18]
[1765132197994,7.34861845,136.08,136.03,10.47172415]
[1765132198492,7.34861845,136.08,136.03,8.18]
[1765132198698,7.34861845,136.08,136.03,15.53104025]
[1765132199706,7.34861845,136.08,136.04,7.93060778]
[1765132200295,23.65709521,136.09,136.04,72.42233193]
[1765132200497,23.65709521,136.09,136.05,0.58]
[1765132200698,24.36709521,136.09,136.05,0.58]
[1765132200907,23.65709521,136.09,136.05,0.58]
[1765132201899,7.3474369,136.11,136.06,2.29172415]
[1765132202107,7.34641898,136.13,136.08,2.29172415]
[1765132202484,23.65433005,136.14,136.09,2.87172415]
[1765132202686,16.308864,136.11,136.04,9.64241644]
[1765132203005,2.29172415,136.1,136.05,0.58]
[1765132203205,8.80994492,136.1,136.05,0.58]
[1765132203412,3.00172415,136.09,136.05,0.58]
[1765132203941,16.308864,136.05,136.02,1e-08]
[1765132204238,16.308864,136.05,136.02,0.58000001]
[1765132205722,7.35077918,136.04,136.02,0.58000001]
[1765132206417,7.34915852,136.07,136.03,2.29172415]
[1765132206620,7.34866564,136.08,136.04,2.29172415]
[1765132207033,7.34866564,136.08,136.05,0.58]
[1765132207424,7.34834936,136.09,136.05,2.87172415]
[1765132207631,7.34834936,136.09,136.05,0.58]
[1765132207819,7.34834936,136.09,136.06,0.58]
[1765132208429,24.488864,136.1,136.06,0.58]
[1765132208618,31.83646825,136.1,136.06,0.58]
[1765132209411,144.8678372,136.89,136.09,2.29172415]
[1765132209412,2.29172415,136.17,136.09,2.29172415]
[1765132209636,3.00172415,136.13,136.06,2.87172415]
[1765132209842,7.346459,136.12,136.06,9.64131686]
[1765132210043,7.346459,136.12,136.07,0.58]
[1765132210247,8.056459,136.12,136.07,0.58]
[1765132210421,8.89,136.11,136.07,0.58]
[1765132210614,0.71,136.1,136.05,0.58]
[1765132210934,14.93885367,136.09,136.02,22.24058046]
[1765132211142,8.80994492,136.07,136.02,6.70890876]
[1765132211452,14.93885367,136.07,136.02,1e-08]
[1765132211747,7.35023888,136.05,136.02,1e-08]
[1765132212531,33.31294445,136.07,136.03,0.58]
[1765132212532,16.15939903,136.07,136.03,0.58]
[1765132212717,24.31939903,136.07,136.03,0.58]
[1765132213023,25.02939903,136.07,136.03,0.58]
[1765132213209,25.02939903,136.07,136.02,6.12890876]
[1765132213412,25.02939903,136.07,136.02,6.70890876]
[1765132214636,25.02939903,136.07,136.02,14.0607063]
[1765132217013,24.31939903,136.07,136.02,6.12890876]
[1765132217217,50.79398366,136.12,136.02,6.12890876]
[1765132217218,8.16,136.09,136.05,6.12890875]
[1765132217523,8.80994492,136.08,136.02,1e-08]
[1765132217729,9.51994492,136.08,136.02,0.58000001]
[1765132218129,8.80994492,136.08,136.02,0.58000001]
[1765132218329,8.80994492,136.08,136.02,1e-08]
[1765132218330,6.83890875,136.07,136.02,1e-08]
[1765132218546,8.16,136.06,136.02,1e-08]
[1765132218720,8.87,136.06,136.02,1e-08]
[1765132219215,24.468864,136.08,136.03,6.70890875]
[1765132219429,31.81762771,136.08,136.03,68.90890875]
[1765132219643,31.81762771,136.08,136.04,6.70890875]
[1765132219958,23.65762771,136.08,136.04,6.70890875]
[1765132220320,24.36762771,136.08,136.04,6.70890875]
[1765132220520,24.36762771,136.08,136.04,0.58]
[1765132221220,23.65762771,136.08,136.04,14.05962828]
[1765132221526,24.36762771,136.08,136.04,14.05962828]
[1765132222468,0.71,136.07,136.03,68.32890875]
[1765132222768,0.71,136.07,136.03,62.78]
[1765132223278,0.71,136.07,136.03,17.41849978]
[1765132223770,0.71,136.07,136.03,10.06724838]
[1765132224171,0.71,136.07,136.03,17.41852947]
[1765132224371,8.16,136.06,136.02,1e-08]
[1765132224576,7.35023888,136.05,136.02,1e-08]
[1765132224877,8.16,136.06,136.02,1e-08]
[1765132224878,15.50981604,136.06,136.02,10.06724839]
[1765132225047,16.15926816,136.07,136.02,10.06724839]
[1765132225590,16.15926816,136.07,136.02,9.48724839]
[1765132225869,0.71,136.06,136.02,1e-08]
[1765132226670,8.05973454,136.06,136.02,0.58000001]
[1765132227480,0.71,136.06,136.02,10.06724839]
[1765132228067,8.05971818,136.06,136.02,0.58000001]
[1765132228375,16.96994492,136.05,136.02,1e-08]
[1765132228565,7.35077918,136.04,136.02,1e-08]
[1765132228761,8.06077918,136.04,136.02,1e-08]
[1765132229070,0.71,136.03,136.02,1e-08]
[1765132230070,8.06131956,136.03,136.02,1e-08]
[1765132231096,17.018864,136.03,136.02,1e-08]
[1765132232801,24.37018356,136.03,136.02,1e-08]
[1765132233978,33.18012848,136.03,136.02,1e-08]
[1765132236595,41.34012848,136.03,136.02,1e-08]
[1765132242417,44.91862962,136.03,136.02,1e-08]
[1765132242725,41.34012848,136.03,136.02,1e-08]
[1765132242898,40.63012848,136.03,136.02,1e-08]
[1765132243097,33.18012848,136.03,136.02,1e-08]
[1765132243298,41.34012848,136.03,136.02,1e-08]
[1765132243618,25.11880892,136.03,136.02,1e-08]
[1765132243796,8.16,136.03,136.02,1e-08]
[1765132243996,8.16,136.03,136.02,3.57850115]
[1765132244301,8.16,136.03,136.02,1e-08]
[1765132247207,8.87,136.03,136.02,1e-08]
[1765132247523,8.16,136.03,136.02,1e-08]
[1765132248024,0.71,136.07,136.02,4.15850115]
[1765132248206,17.018864,136.06,136.02,0.58000001]
[1765132248412,17.018864,136.06,136.02,1e-08]
[1765132248720,0.71,136.05,136.02,1e-08]
[1765132249213,24.36897616,136.06,136.02,4.15850115]
[1765132249531,8.16,136.07,136.03,3.57850114]
[1765132249731,8.16,136.07,136.04,4.15850114]
[1765132250522,15.50923725,136.07,136.04,4.15850114]
[1765132251300,0.71,136.06,136.02,1e-08]
[1765132251516,0.71,136.06,136.02,3.57850115]
[1765132251912,0.71,136.06,136.02,1e-08]
[1765132252228,9.51994492,136.06,136.02,1e-08]
[1765132252615,0.71,136.05,136.02,1e-08]
[1765132252923,16.21881687,136.08,136.04,3.57850114]
[1765132253125,8.05881687,136.08,136.04,65.77850114]
[1765132253307,16.21881687,136.08,136.04,66.35850114]
[1765132253919,0.71,136.07,136.04,66.35850114]
[1765132254606,15.50881687,136.08,136.04,66.35850114]
[1765132254832,0.71,136.07,136.04,65.77850114]
[1765132255126,0.71,136.07,136.04,73.12924922]
[1765132255513,0.71,136.07,136.04,73.70924922]
[1765132255719,15.50881687,136.08,136.04,73.70924922]
[1765132255928,16.16881687,136.08,136.04,73.70924922]
[1765132256233,0.66,136.07,136.04,73.70924922]
[1765132256409,0.66,136.07,136.05,3.57850114]
[1765132259618,8.00919425,136.07,136.05,3.57850114]
[1765132259823,0.66,136.07,136.05,3.57850114]
[1765132260130,15.5087876,136.08,136.05,3.57850114]
[1765132260315,0.66,136.07,136.05,3.57850114]
[1765132260933,8.00918168,136.07,136.05,3.57850114]
[1765132261447,15.50880927,136.08,136.05,3.57850114]
[1765132261631,16.16880927,136.08,136.06,3.57850114]
[1765132261822,8.80994492,136.1,136.07,3.57850114]
[1765132262137,18.36670235,136.12,136.09,3.57850114]
[1765132262138,8.80994492,136.12,136.09,3.57850114]
[1765132262436,8.80994492,136.13,136.11,3.57850114]
[1765132262727,7.346459,136.12,136.11,3.57850114]
[1765132262909,8.006459,136.12,136.11,3.57850114]
[1765132264011,8.006459,136.12,136.1,3.57850114]
[1765132264707,0.66,136.11,136.08,3.57850114]
[1765132264909,0.66,136.11,136.07,10.92745284]
[1765132265120,0.66,136.11,136.06,18.37342538]
[1765132265121,32.46489595,136.13,136.1,3.57850114]
[1765132265425,33.12489595,136.13,136.11,3.57850114]
[1765132265835,8.80994492,136.09,136.06,3.57850114]
[1765132266036,16.96994492,136.09,136.05,4.15850114]
[1765132266339,24.468864,136.1,136.07,3.57850114]
[1765132266534,24.468864,136.1,136.08,3.57850114]
[1765132266733,31.81678219,136.1,136.07,3.57850114]
[1765132266951,0.66,136.09,136.06,3.57850114]
[1765132269152,8.0084359,136.09,136.05,10.92872041]
[1765132269533,0.66,136.08,136.05,3.57850114]
[1765132270661,0.66,136.08,136.06,3.57850114]
[1765132271150,8.00865312,136.08,136.06,3.57850114]
[1765132271347,8.80994492,136.11,136.07,4.15850114]
[1765132271542,0.66,136.1,136.06,69.54949874]
[1765132271738,8.80994492,136.09,136.06,62.2]
[1765132271943,0.66,136.1,136.07,3.57850114]
[1765132272155,8.82,136.1,136.08,3.57850114]
[1765132272359,8.82,136.1,136.06,65.77850114]
[1765132272658,0.66,136.09,136.06,65.77850114]
[1765132273554,0.66,136.09,136.06,73.12817156]
[1765132274055,8.00808964,136.09,136.06,65.77850114]
[1765132274253,15.50765635,136.1,136.07,3.57850114]
[1765132274553,0.66,136.09,136.07,3.57850114]
[1765132274932,15.50765635,136.1,136.07,4.15850114]
[1765132275145,8.16,136.12,136.09,3.57850114]
[1765132275329,0.66,136.11,136.09,3.57850114]
[1765132275956,0.66,136.11,136.08,3.57850114]
[1765132276155,8.00727778,136.11,136.08,3.57850114]
[1765132276465,8.00727778,136.11,136.07,10.92764616]
[1765132276763,8.00727778,136.11,136.08,3.57850114]
[1765132278342,7.34727778,136.11,136.08,3.57850114]
[1765132278545,7.34727778,136.11,136.06,62.2]
[1765132278546,8.80994492,136.09,136.06,62.2]
[1765132278757,19.02749687,136.19,136.08,10.92706305]
[1765132278943,8.00430082,136.16,136.14,3.57850114]
[1765132279661,7.34430082,136.16,136.14,3.57850114]
[1765132279868,0.66,136.15,136.14,3.57850114]
[1765132280067,8.00430082,136.16,136.14,3.57850114]
[1765132280244,0.66,136.16,136.15,3.57850114]
[1765132280567,0.1,136.17,136.15,3.57850114]
[1765132280737,0.1,136.17,136.16,4.15850114]
[1765132281448,0.76,136.17,136.12,23.65482475]
[1765132281646,0.76,136.17,136.14,3.57850114]
[1765132281847,8.10387802,136.17,136.14,3.57850114]
[1765132282048,8.10387802,136.17,136.13,3.57850114]
[1765132282261,8.10387802,136.17,136.14,3.57850114]
[1765132282569,26.4632817,136.17,136.13,0.58]
[1765132282750,26.4632817,136.17,136.14,3.57850114]
[1765132283254,19.88736514,136.15,136.07,0.58]
[1765132283451,19.88736514,136.15,136.02,1e-08]
[1765132283452,16.308864,136.13,136.1,3.57850114]
[1765132283866,24.31518884,136.13,136.1,3.57850114]
[1765132284249,24.31518884,136.13,136.11,3.57850114]
[1765132284446,7.34549404,136.14,136.11,3.57850114]
[1765132284652,26.36894343,136.14,136.09,2.28662616]
[1765132284868,26.36894343,136.14,136.09,2.86662616]
[1765132284869,0.66,136.13,136.09,2.86662616]
[1765132285062,0.66,136.13,136.1,2.28662616]
[1765132285368,0.66,136.13,136.09,2.28662616]
[1765132285574,0.66,136.13,136.09,2.86662616]
[1765132286071,8.00637699,136.13,136.09,2.86662616]
[1765132286279,8.00637699,136.13,136.09,2.28662616]
[1765132286451,0.66,136.12,136.09,2.28662616]
[1765132286851,0.66,136.12,136.1,2.28662616]
[1765132287063,0.66,136.12,136.09,2.28662616]
[1765132287258,0.66,136.12,136.08,2.28662616]
[1765132287259,17.62994492,136.12,136.08,2.28662616]
[1765132287461,17.62994492,136.12,136.06,2.28662616]
[1765132287462,8.80994492,136.11,136.06,2.28662616]
[1765132287769,9.46994492,136.11,136.06,2.28662616]
[1765132287953,8.00803238,136.1,136.06,2.86662616]
[1765132288149,8.00803238,136.1,136.07,2.28662616]
[1765132288150,7.34803238,136.1,136.07,2.28662616]
[1765132288355,7.34803238,136.1,136.08,2.28662616]
[1765132288949,7.34803238,136.1,136.07,2.28662616]
[1765132289370,0.66,136.15,136.09,2.28662616]
[1765132289577,0.66,136.15,136.11,2.28662616]
[1765132289764,16.308864,136.14,136.12,2.28662616]
[1765132290155,8.26,136.17,136.13,2.86662616]
[1765132290356,8.10392495,136.17,136.15,2.28662616]
[1765132290667,8.10392495,136.17,136.14,2.28662616]
[1765132290864,0.66,136.16,136.14,2.28662616]
[1765132291064,0.66,136.16,136.12,2.28662616]
[1765132291866,0.66,136.16,136.13,2.28662616]
[1765132292074,8.00441218,136.16,136.13,2.28662616]
[1765132292978,15.60392498,136.17,136.14,2.28662616]
[1765132293191,16.26392498,136.17,136.14,2.28662616]
[1765132293353,16.26392498,136.17,136.15,2.28662616]
[1765132294285,15.60392498,136.17,136.14,2.28662616]
[1765132294454,16.26392498,136.17,136.14,2.28662616]
[1765132294651,8.92,136.17,136.14,9.63197136]
[1765132295071,0.1,136.17,136.14,69.5453452]
[1765132295286,0.1,136.21,136.16,2.28662616]
[1765132295488,7.44176358,136.21,136.18,2.28662616]
[1765132295704,8.10176358,136.21,136.17,2.28662616]
[1765132295984,0.66,136.2,136.16,2.28662616]
[1765132296157,7.34268301,136.19,136.15,2.28662616]
[1765132296577,0.66,136.18,136.15,2.28662616]
[1765132296784,0.66,136.18,136.15,64.48662616]
[1765132297026,0.66,136.18,136.14,10.44662616]
[1765132297178,0.66,136.18,136.14,10.92662616]
[1765132297490,0.66,136.18,136.15,2.28662616]
[1765132297780,0.66,136.18,136.13,62.68]
[1765132298079,0.66,136.18,136.14,0.48]
[1765132298380,7.34376147,136.17,136.15,2.28662616]
[1765132298581,7.34376147,136.17,136.16,2.28662616]
[1765132298782,7.34376147,136.17,136.15,6.11919547]
[1765132299994,0.66,136.16,136.14,6.11919547]
[1765132300211,8.00450159,136.16,136.14,6.11919547]
[1765132300368,8.00450159,136.16,136.13,68.31919547]
[1765132300689,26.36525364,136.16,136.13,68.31919547]
[1765132301189,7.34450159,136.16,136.13,6.11919547]
[1765132301373,7.34450159,136.16,136.14,6.11919547]
[1765132301694,8.00450159,136.16,136.13,6.11919547]
[1765132301908,0.66,136.15,136.11,14.27919547]
[1765132302199,8.82,136.15,136.11,6.11919547]
[1765132302372,7.34537975,136.14,136.1,6.11919547]
[1765132302566,8.00537975,136.14,136.1,6.11919547]
[1765132302766,0.66,136.13,136.1,6.11919547]
[1765132305279,7.34594157,136.13,136.1,6.11919547]
[1765132305596,8.00594157,136.13,136.1,6.11919547]
[1765132305784,8.00594157,136.13,136.11,6.11919547]
[1765132306390,0.66,136.12,136.09,6.11919547]
[1765132306695,0.66,136.12,136.08,14.27919547]
[1765132306896,0.66,136.12,136.08,14.75919547]
[1765132307083,0.66,136.12,136.08,6.59919547]
[1765132307470,8.00654915,136.12,136.08,13.94775859]
[1765132307673,23.08914039,136.11,136.07,62.2]
[1765132307903,23.74914039,136.11,136.04,13.94957469]
[1765132308111,0.66,136.1,136.05,13.46934944]
[1765132308477,0.66,136.1,136.04,13.46984826]
[1765132308788,0.66,136.1,136.03,15.99113059]
[1765132308981,0.66,136.1,136.04,6.11919547]
[1765132309371,7.34807847,136.09,136.04,6.11919547]
[1765132309568,7.34807847,136.09,136.04,6.59919547]
[1765132309772,0.66,136.08,136.04,6.59919547]
[1765132309972,0.66,136.08,136.04,76.14983487]
[1765132311192,7.34766515,136.1,136.06,6.11919547]
[1765132311396,8.01766515,136.1,136.06,6.11919547]
[1765132311582,0.67,136.09,136.06,6.11919547]
[1765132312984,0.67,136.09,136.06,68.31919547]
[1765132313379,8.01811174,136.09,136.06,68.31919547]
[1765132313803,8.01811174,136.09,136.06,62.2]
[1765132314002,0.67,136.08,136.06,62.2]
[1765132314711,8.01896901,136.08,136.06,62.2]
[1765132314886,23.08914039,136.07,136.02,1e-08]
[1765132315090,6.11919547,136.06,136.02,1e-08]
[1765132315290,6.78919547,136.06,136.02,1e-08]
[1765132315502,0.67,136.05,136.02,1e-08]
[1765132316420,7.35077918,136.04,136.02,1e-08]
[1765132316604,0.66,136.03,136.02,1e-08]
[1765132317394,17.62994492,136.03,136.02,1e-08]
[1765132318621,24.98126448,136.03,136.02,1e-08]
[1765132319612,31.10045995,136.03,136.02,1e-08]
[1765132320685,27.27317949,136.03,136.02,1e-08]
[1765132320886,25.11880892,136.0,135.99,1e-08]
[1765132321093,8.80994492,135.96,135.94,0.2]
[1765132321298,27.41072393,135.97,135.94,0.2]
[1765132321299,16.96994492,135.95,135.94,0.2]
[1765132321789,17.62994492,135.95,135.94,0.2]
[1765132322189,8.16,135.95,135.94,0.2]
[1765132324320,0.66,135.95,135.94,0.2]
[1765132324900,7.35527721,135.96,135.94,0.2]
[1765132325212,15.51527721,135.96,135.94,0.2]
[1765132325419,16.17527721,135.96,135.94,0.2]
[1765132327116,15.51527721,135.96,135.94,0.2]
[1765132327311,16.17527721,135.96,135.94,0.2]
[1765132330012,8.01527721,135.96,135.94,0.2]
[1765132330211,16.17527721,135.96,135.94,0.2]
[1765132330599,7.35464057,135.97,135.94,6.34076941]
[1765132330925,16.17464057,135.97,135.94,0.2]
[1765132331711,16.308864,135.98,135.94,6.34076941]
[1765132331913,7.35023888,136.05,135.97,6.14076941]
[1765132332094,0.66,136.02,135.99,6.14076941]
[1765132332308,8.16,136.01,135.94,34.10645056]
[1765132332511,8.16,136.01,135.94,0.2]
[1765132332512,6.14076941,135.99,135.94,0.2]
[1765132332813,8.80994492,135.97,135.94,0.2]
[1765132333019,14.95071433,135.97,135.94,0.2]
[1765132333326,0.66,135.96,135.94,0.2]
[1765132334018,8.16,135.95,135.94,0.2]
[1765132334413,17.62994492,135.95,135.94,0.2]
[1765132334796,24.98559037,135.95,135.94,0.2]
[1765132335215,16.17564545,135.95,135.94,0.2]
[1765132335626,24.98559037,135.95,135.94,0.2]
[1765132337334,31.12635978,135.95,135.94,0.2]
[1765132337515,14.95071433,135.94,135.91,0.2]
[1765132337836,15.61071433,135.94,135.91,0.2]
[1765132338032,0.66,135.93,135.91,0.2]
[1765132338236,8.16,135.92,135.91,0.2]
[1765132338711,8.82,135.92,135.91,0.2]
[1765132339114,16.17726898,135.92,135.91,0.2]
[1765132339809,8.01576996,135.95,135.91,13.69856795]
[1765132340030,16.17576996,135.95,135.91,13.89856795]
[1765132340236,16.17576996,135.95,135.91,6.54076941]
[1765132340533,25.11880892,135.98,135.94,6.14076941]
[1765132340731,7.35294117,136.0,135.96,6.14076941]
[1765132340930,16.2225049,136.01,135.98,6.14076941]
[1765132341233,8.16,136.01,135.98,6.14076941]
[1765132341412,7.35198389,136.02,135.99,6.14076941]
[1765132341729,0.71,136.03,136.0,6.14076941]
[1765132341931,24.468864,136.04,136.0,6.14076941]
[1765132342134,30.60963341,136.04,135.98,6.14076941]
[1765132342333,9.51994492,136.03,135.99,6.14076941]
[1765132342636,16.96994492,136.04,136.0,6.14076941]
[1765132342807,17.67994492,136.04,135.99,6.14076941]
[1765132343007,25.03116173,136.04,135.99,13.49422937]
[1765132343226,25.03116173,136.04,136.0,6.14076941]
[1765132343424,0.71,136.03,135.99,6.14076941]
[1765132343738,0.71,136.03,136.0,6.14076941]
[1765132345032,0.71,136.03,135.99,6.14076941]
[1765132345237,8.0615059,136.03,135.99,6.14076941]
[1765132345538,8.0615059,136.03,135.99,13.49415962]
[1765132345729,8.0615059,136.03,136.0,6.14076941]
[1765132345924,7.3515059,136.03,135.99,6.14076941]
[1765132346232,0.71,136.02,135.99,6.14076941]
[1765132346438,0.71,136.02,135.98,7.35390137]
[1765132346439,0.71,136.02,135.98,6.14076941]
[1765132346739,0.71,136.02,135.98,9.49489944]
[1765132347212,8.06207753,136.02,135.98,9.49489944]
[1765132347614,8.06207753,136.02,135.98,16.84875514]
[1765132347815,8.06207753,136.02,135.99,9.49489944]
[1765132348032,0.71,136.01,135.99,9.49489944]
[1765132348233,0.71,136.01,135.98,9.49489944]
[1765132348427,0.71,136.01,135.99,9.49489944]
[1765132349104,0.71,136.01,135.96,18.58673933]
[1765132349105,8.06254897,136.01,135.98,9.49489944]
[1765132349341,8.06254897,136.01,135.99,9.49489944]
[1765132349714,8.06254897,136.01,135.97,7.35447]
[1765132349911,8.06254897,136.01,135.99,9.49489944]
[1765132350310,7.35254897,136.01,135.99,9.49489944]
[1765132350708,15.51185409,136.03,136.0,9.49489944]
[1765132350930,16.22185409,136.03,136.01,9.49489944]
[1765132351332,0.71,136.02,136.0,9.49489944]
[1765132351740,0.71,136.02,135.94,16.308864]
[1765132351941,9.49489944,136.0,135.95,9.49489944]
[1765132352136,9.51994492,135.99,135.95,9.49489944]
[1765132352321,16.308864,136.02,135.98,9.49489944]
[1765132352531,8.16,136.01,135.99,9.49489944]
[1765132352728,15.51248118,136.01,135.99,9.49489944]
[1765132352925,0.71,136.0,135.99,9.49489944]
[1765132353453,8.87,136.01,135.99,9.49489944]
[1765132353641,16.308864,136.02,136.0,9.49489944]
[1765132353836,8.06061739,136.05,136.01,9.49489944]
[1765132354019,7.35061739,136.05,136.03,9.49489944]